bitfinex/quotes_SOLUSD_20230113
["timestamp","ask_amount","ask_price","bid_price","bid_amount"]
[1673650158056,40.26847898,18.113,18.1,2.5]
[1673650158271,20.0,18.112,18.1,2.5]
[1673650158674,33.31720984,18.112,18.1,2.5]
[1673650159094,33.31720984,18.111,18.1,2.5]
[1673650159974,33.31720984,18.111,18.091,132.3038]
[1673650159975,2.5,18.097,18.091,112.3038]
[1673650160164,16.9936846,18.092,18.091,112.3038]
[1673650160364,112.45665621,18.11,18.081,20.0]
[1673650160365,40.1287919,18.094,18.081,20.0]
[1673650160689,82.42187244,18.092,18.08,231.3773]
[1673650161436,71.97882758,18.091,18.08,231.3773]
[1673650161620,71.97882758,18.091,18.087,35.66307255]
[1673650161828,134.25083524,18.09,18.087,35.66307255]
[1673650162259,85.31026262,18.089,18.087,35.66307255]
[1673650162459,85.31026262,18.089,18.087,33.78858468]
[1673650162794,124.6782621,18.088,18.087,33.78858468]
[1673650163316,124.6782621,18.088,18.08,231.3773]
[1673650163503,48.01511607,18.087,18.072,115.6193]
[1673650163713,158.13486191,18.087,18.072,115.6193]
[1673650163941,77.19022654,18.086,18.072,115.6193]
[1673650164154,20.0,18.085,18.072,115.6193]
[1673650164379,132.18209596,18.085,18.072,115.6193]
[1673650164571,132.18209596,18.085,18.07,112.0241]
[1673650164572,74.36531477,18.084,18.07,112.0241]
[1673650164777,20.0,18.083,18.079,12.94748455]
[1673650165008,22.57044285,18.079,18.064,14.5371528]
[1673650165203,12.94748455,18.075,18.064,14.5371528]
[1673650165412,20.0,18.074,18.068,3.67990658]
[1673650165738,20.0,18.074,18.059,31.5402728]
[1673650165739,85.29569605,18.064,18.059,31.5402728]
[1673650165941,20.0,18.063,18.059,31.5402728]
[1673650166144,58.95563315,18.063,18.059,18.59278825]
[1673650166362,53.34635471,18.05,18.041,40.1287919]
[1673650166577,54.61903846,18.051,18.041,40.1287919]
[1673650166895,35.45439774,18.049,18.041,40.1287919]
[1673650167096,35.45439774,18.049,18.041,39.6287919]
[1673650167309,117.47407575,18.048,18.041,39.6287919]
[1673650167635,31.55439774,18.047,18.032,109.1554]
[1673650167853,86.1734362,18.047,18.032,109.1554]
[1673650168044,104.00581178,18.046,18.032,109.1554]
[1673650168251,187.42226021,18.046,18.032,109.1554]
[1673650168474,83.70190485,18.045,18.032,109.1554]
[1673650168670,166.5308043,18.045,18.032,109.1554]
[1673650168882,167.77593251,18.044,18.032,109.1554]
[1673650169107,90.90376112,18.078,18.031,51.5402728]
[1673650169316,20.0,18.076,18.039,20.0]
[1673650169514,40.747326,18.073,18.039,20.0]
[1673650170042,26.37111882,18.072,18.039,20.0]
[1673650170255,64.85947254,18.072,18.034,41.19370723]
[1673650170451,181.8,18.071,18.036,42.8123964]
[1673650170657,6.21868,18.07,18.031,31.5402728]
[1673650170875,37.58610333,18.07,18.031,31.5402728]
[1673650171105,31.36742333,18.069,18.031,31.5402728]
[1673650171301,20.0,18.068,18.032,20.0]
[1673650171721,31.36742333,18.067,18.032,20.0]
[1673650171936,20.0,18.066,18.039,20.0]
[1673650172261,20.0,18.066,18.031,31.5402728]
[1673650172262,51.36742333,18.065,18.031,31.5402728]
[1673650172457,20.0,18.039,18.031,31.5402728]
[1673650172787,13.49401834,18.039,18.031,31.5402728]
[1673650172996,21.40306611,18.039,18.031,31.5402728]
[1673650173210,56.20682976,18.039,18.031,31.5402728]
[1673650175390,71.98218053,18.039,18.031,31.5402728]
[1673650175604,26.2375571,18.044,18.031,31.5402728]
[1673650175918,66.68596622,18.044,18.031,31.5402728]
[1673650176130,40.44840912,18.044,18.031,31.5402728]
[1673650176333,33.48326915,18.044,18.031,31.5402728]
[1673650176570,39.67454231,18.048,18.031,31.5402728]
[1673650176759,33.48326915,18.05,18.031,31.5402728]
[1673650176976,33.48326915,18.047,18.031,31.5402728]
[1673650177294,33.48326915,18.047,18.032,20.0]
[1673650177812,33.48326915,18.047,18.031,149.9995728]
[1673650178551,6.21868,18.064,18.031,149.9995728]
[1673650178757,33.48326915,18.063,18.031,149.9995728]
[1673650178964,7.06542002,18.052,18.031,149.9995728]
[1673650179621,51.17966915,18.051,18.031,149.9995728]
[1673650180150,45.21022914,18.05,18.031,149.9995728]
[1673650180469,31.17966915,18.049,18.038,81.15079768]
[1673650180787,32.60912229,18.048,18.038,81.15079768]
[1673650181311,31.17966915,18.047,18.038,81.15079768]
[1673650182443,6.21868,18.062,18.038,81.15079768]
[1673650182649,31.17966915,18.058,18.038,81.15079768]
[1673650182884,26.2375571,18.056,18.038,81.15079768]
[1673650183204,26.2375571,18.056,18.039,20.0]
[1673650183614,26.2375571,18.056,18.044,0.2771]
[1673650183837,37.17841688,18.059,18.044,0.2771]
[1673650184027,52.29393141,18.055,18.044,0.5542]
[1673650184233,19.37208668,18.064,18.044,0.5542]
[1673650184557,21.11426226,18.062,18.044,0.5542]
[1673650184768,26.21868,18.061,18.044,0.5542]
[1673650184981,6.21868,18.06,18.044,0.5542]
[1673650185189,37.39834915,18.06,18.044,0.5542]
[1673650185399,20.0,18.076,18.044,0.5542]
[1673650185400,31.17966915,18.059,18.044,0.5542]
[1673650186470,34.76634894,18.076,18.044,0.5542]
[1673650186655,31.17966915,18.073,18.044,0.5542]
[1673650186866,6.21868,18.072,18.044,0.5542]
[1673650187071,6.21868,18.072,18.044,20.5542]
[1673650187286,31.17966915,18.071,18.044,20.5542]
[1673650187502,6.21868,18.072,18.044,20.5542]
[1673650187702,31.17966915,18.071,18.044,20.5542]
[1673650188228,6.21868,18.07,18.044,20.5542]
[1673650188434,6.21868,18.07,18.044,15.90334453]
[1673650188658,37.39834915,18.07,18.044,15.90334453]
[1673650189082,26.21868,18.069,18.042,116.28]
[1673650189298,6.21868,18.068,18.042,116.28]
[1673650189511,37.39834915,18.068,18.042,116.28]
[1673650189719,51.17966915,18.067,18.042,116.28]
[1673650190039,51.17966915,18.067,18.043,20.0]
[1673650190040,37.39834915,18.066,18.043,20.0]
[1673650190249,20.0,18.065,18.043,20.0]
[1673650190572,51.17966915,18.065,18.04,115.4169]
[1673650190770,51.17966915,18.065,18.033,111.6042]
[1673650190771,46.45686644,18.064,18.033,111.6042]
[1673650191094,20.0,18.062,18.033,111.6042]
[1673650191283,43.21868,18.061,18.033,111.6042]
[1673650191495,6.21868,18.06,18.031,31.5402728]
[1673650191719,198.8,18.059,18.031,31.5402728]
[1673650191933,6.21868,18.058,18.031,31.5402728]
[1673650192137,37.0,18.057,18.031,31.5402728]
[1673650192330,26.21868,18.056,18.031,31.5402728]
[1673650192545,26.21868,18.055,18.031,31.5402728]
[1673650192753,6.21868,18.054,18.031,31.5402728]
[1673650192980,17.65000001,18.044,18.031,31.5402728]
[1673650193191,20.0,18.043,18.031,31.5402728]
[1673650193399,17.65000001,18.044,18.031,31.5402728]
[1673650193609,20.0,18.042,18.031,31.5402728]
[1673650193815,20.0,18.041,18.031,31.5402728]
[1673650194024,14.5371528,18.034,18.031,31.5402728]
[1673650194248,98.41213669,18.04,18.031,31.5402728]
[1673650194444,58.63502895,18.04,18.031,31.5402728]
[1673650194655,78.71617836,18.033,18.031,31.5402728]
[1673650194875,20.0,18.032,18.031,31.5402728]
[1673650195070,90.48891438,18.032,18.031,31.5402728]
[1673650195284,50.71180664,18.032,18.031,31.5402728]
[1673650195698,50.71180664,18.032,18.031,213.1655621]
[1673650196232,90.48891438,18.032,18.031,212.6655621]
[1673650197086,112.57157008,18.032,18.031,212.6655621]
[1673650197714,17.65000001,18.04,18.031,212.6655621]
[1673650198044,39.77710774,18.032,18.031,212.6655621]
[1673650198435,17.65000001,18.04,18.031,212.6655621]
[1673650198645,39.77710774,18.039,18.031,212.6655621]
[1673650199064,47.45004219,18.043,18.031,212.6655621]
[1673650199380,38.68857441,18.044,18.031,212.6655621]
[1673650199815,38.68857441,18.043,18.031,212.6655621]
[1673650200011,47.45004219,18.05,18.031,212.6655621]
[1673650200220,31.75524108,18.049,18.031,212.6655621]
[1673650201069,20.0,18.048,18.031,212.6655621]
[1673650201286,31.75524108,18.049,18.031,212.6655621]
[1673650201602,79.20528327,18.049,18.031,212.6655621]
[1673650201810,47.45004219,18.049,18.031,210.1655621]
[1673650202446,31.75524108,18.05,18.031,210.1655621]
[1673650202641,31.75524108,18.049,18.031,210.1655621]
[1673650203403,31.75524108,18.049,18.026,110.1717]
[1673650203404,31.75524108,18.049,17.99,93.22014841]
[1673650203405,89.97904042,18.025,17.99,93.22014841]
[1673650203589,23.95537491,18.021,18.004,31.5402728]
[1673650203807,6.40189,18.02,18.013,34.1287919]
[1673650204005,40.1287919,18.012,18.009,3.14068846]
[1673650204216,26.40189,18.011,18.004,31.5402728]
[1673650204428,26.40189,18.011,18.009,77.1760696]
[1673650204429,6.40189,18.01,18.009,77.1760696]
[1673650204655,61.29376275,18.01,18.009,77.1760696]
[1673650204964,134.08822509,18.01,18.009,73.6760696]
[1673650205182,134.08822509,18.01,18.009,38.64977875]
[1673650205491,134.08822509,18.01,18.004,31.5402728]
[1673650205492,81.29376275,18.01,18.004,31.5402728]
[1673650205711,20.5352998,18.009,18.004,31.5402728]
[1673650205902,6.40189,18.008,18.004,31.5402728]
[1673650206103,27.14384902,18.008,18.004,31.5402728]
[1673650206317,27.14384902,18.008,17.997,51.4608998]
[1673650206318,4.64608938,18.003,17.997,51.4608998]
[1673650206530,6.40189,18.002,17.997,51.4608998]
[1673650206748,20.0,18.001,17.997,51.4608998]
[1673650206964,34.77960654,17.994,17.985,39.8898567]
[1673650207168,26.07250332,17.99,17.986,19.06165896]
[1673650207379,6.40189,17.989,17.986,19.06165896]
[1673650207803,20.74195902,17.988,17.986,19.06165896]
[1673650207999,15.74195902,17.988,17.986,19.06165896]
[1673650208434,6.40189,17.989,17.986,19.06165896]
[1673650209047,41.50840907,17.989,17.986,19.06165896]
[1673650209254,20.0,17.988,17.986,19.06165896]
[1673650209482,6.40189,17.987,17.986,19.06165896]
[1673650209899,35.10651907,17.989,17.986,19.06165896]
[1673650210110,110.90376112,18.015,17.986,19.06165896]
[1673650210313,161.8,18.011,17.986,19.06165896]
[1673650210523,45.46648505,17.996,17.986,19.06165896]
[1673650210733,6.40189,17.995,17.986,19.06165896]
[1673650211160,32.31237418,17.994,17.986,19.06165896]
[1673650211575,6.40189,17.995,17.986,19.06165896]
[1673650211786,20.0,17.994,17.986,19.06165896]
[1673650211995,20.0,17.999,17.986,19.06165896]
[1673650212419,55.71426418,17.998,17.986,19.06165896]
[1673650212647,6.40189,17.997,17.986,19.06165896]
[1673650212829,20.0,17.995,17.986,19.06165896]
[1673650213041,20.0,17.995,17.982,13.8861661]
[1673650213042,34.43697108,17.984,17.982,0.0061661]
[1673650213250,34.43697108,17.984,17.976,31.5402728]
[1673650213251,20.0,17.983,17.976,31.5402728]
[1673650213481,6.40189,17.982,17.976,31.5402728]
[1673650213684,91.66847153,17.982,17.976,31.5402728]
[1673650213889,118.81585347,17.982,17.976,31.5402728]
[1673650214102,86.00913738,17.981,17.976,31.5402728]
[1673650214414,118.81585347,17.981,17.976,31.5402728]
[1673650214626,39.80009648,17.981,17.976,31.5402728]
[1673650214841,58.86175544,17.981,17.976,31.5402728]
[1673650215040,39.80009648,17.981,17.976,31.5402728]
[1673650215576,90.90376112,17.999,17.976,31.5402728]
[1673650215772,20.0,17.997,17.977,17.0]
[1673650216006,6.40189,17.996,17.976,31.5402728]
[1673650216198,20.0,17.995,17.976,31.5402728]
[1673650216404,6.40189,17.994,17.976,31.5402728]
[1673650216619,20.0,17.993,17.976,31.5402728]
[1673650216849,6.40189,17.992,17.976,31.5402728]
[1673650217059,51.86837505,17.992,17.976,31.5402728]
[1673650217705,88.2191382,17.992,17.976,26.5402728]
[1673650219152,20.0,17.991,17.976,25.5402728]
[1673650219363,42.75265315,17.992,17.976,25.5402728]
[1673650219586,42.75265315,17.992,17.977,17.0]
[1673650219905,36.35076315,17.992,17.977,17.0]
[1673650220120,36.35076315,17.992,17.976,25.5402728]
[1673650220305,252.70376112,18.01,17.976,25.5402728]
[1673650220516,20.0,18.007,17.977,20.0]
[1673650220727,26.40189,18.006,17.977,20.0]
[1673650220958,6.40189,18.005,17.977,20.0]
[1673650221166,20.0,18.004,17.977,20.0]
[1673650221384,6.40189,18.003,17.977,20.0]
[1673650221577,20.0,18.002,17.977,20.0]
[1673650221782,6.40189,18.001,17.977,20.0]
[1673650222003,20.0,18.0,17.977,20.0]
[1673650222203,20.0,18.0,17.978,17.0]
[1673650222414,56.35076315,18.0,17.979,20.0]
[1673650222849,20.0,18.0,17.98,17.0]
[1673650223040,20.0,18.017,17.98,17.0]
[1673650223252,36.35076315,18.0,17.98,17.0]
[1673650223581,20.0,17.999,17.98,17.0]
[1673650223798,20.0,17.999,17.976,25.5402728]
[1673650224003,6.40189,17.998,17.976,25.5402728]
[1673650224340,56.35076315,17.997,17.976,25.5402728]
[1673650224508,36.35076315,17.997,17.976,25.5402728]
[1673650224727,36.35076315,17.997,17.977,20.0]
[1673650224939,251.57389238,18.026,17.977,20.0]
[1673650225145,108.5584,18.035,17.977,20.0]
[1673650225146,36.35076315,18.007,17.977,20.0]
[1673650225360,36.35076315,18.007,17.978,37.0]
[1673650225691,36.35076315,18.007,17.979,20.0]
[1673650225885,6.40189,18.02,17.98,37.0]
[1673650226099,33.49076315,18.019,17.98,37.0]
[1673650226312,6.40189,18.018,17.98,37.0]
[1673650226516,6.40189,18.018,17.98,198.8]
[1673650226851,23.95537491,18.021,17.982,20.0]
[1673650227039,23.95537491,18.021,17.983,30.61949537]
[1673650227252,23.95537491,18.021,17.984,23.41595]
[1673650227464,23.95537491,18.021,17.985,30.98882104]
[1673650227792,23.95537491,18.021,17.988,5.0]
[1673650228002,23.95537491,18.021,17.987,20.0]
[1673650228003,23.95537491,18.021,17.99,5.0]
[1673650228196,23.95537491,18.021,17.992,5.0]
[1673650228403,23.95537491,18.021,17.994,5.0]
[1673650228614,23.95537491,18.021,17.996,25.0]
[1673650229047,23.95537491,18.021,17.998,5.0]
[1673650229261,0.00537491,18.021,17.998,5.0]
[1673650229449,0.00537491,18.021,18.001,20.0]
[1673650229663,0.00537491,18.021,18.003,5.82342184]
[1673650229896,0.00537491,18.021,18.005,5.82342184]
[1673650230087,0.00537491,18.021,18.007,5.82342184]
[1673650230300,0.00537491,18.021,18.009,5.82342184]
[1673650230737,6.0,18.041,18.009,5.82342184]
[1673650230951,6.0,18.041,18.009,37.20259344]
[1673650231157,6.0,18.041,18.009,84.52043556]
[1673650231365,6.0,18.041,18.01,69.90841728]
[1673650231583,6.0,18.041,18.012,5.82342184]
[1673650231790,6.0,18.041,18.011,26.40634]
[1673650231791,6.0,18.041,18.014,5.82342184]
[1673650232005,45.2332743,18.05,18.016,5.82342184]
[1673650232230,45.2332743,18.05,18.017,26.4042]
[1673650232419,0.0060228,18.052,18.018,191.02727184]
[1673650232746,0.0060228,18.052,18.02,167.62342184]
[1673650232941,0.0060228,18.052,18.022,5.82342184]
[1673650233142,0.0060228,18.052,18.024,5.82342184]
[1673650233361,0.0060228,18.052,18.026,5.82342184]
[1673650233582,0.0060228,18.052,18.028,20.0]
[1673650233797,0.0060228,18.052,18.029,32.22336184]
[1673650233994,0.0060228,18.052,18.03,6.39959]
[1673650234205,0.0060228,18.052,18.031,25.82342184]
[1673650234420,0.0060228,18.052,18.032,6.39888]
[1673650234630,0.0060228,18.052,18.034,20.0]
[1673650234838,0.0060228,18.052,18.035,32.22123184]
[1673650235051,0.0060228,18.052,18.035,56.27352082]
[1673650235259,0.0060228,18.052,18.036,76.82125923]
[1673650235473,0.0060228,18.052,18.038,20.0]
[1673650235689,0.0060228,18.052,18.039,5.82342184]
[1673650237469,0.0060228,18.052,18.037,20.0]
[1673650237470,0.0060228,18.052,18.037,5.82342184]
[1673650237680,0.0060228,18.052,18.037,25.82342184]
[1673650238108,0.0060228,18.052,18.036,110.0664]
[1673650238306,0.0060228,18.052,18.01,109.7505]
[1673650238711,39.98782155,18.051,18.01,109.7505]
[1673650238952,17.65000001,18.039,18.01,109.7505]
[1673650239391,20.0,18.038,18.01,109.7505]
[1673650239682,57.63782156,18.039,18.015,24.67543435]
[1673650239870,20.0,18.05,18.015,24.67543435]
[1673650240080,37.32715488,18.046,18.02,134.42593435]
[1673650240288,20.0,18.045,18.02,109.7505]
[1673650240713,39.67530155,18.044,18.02,109.7505]
[1673650240918,20.0,18.045,18.02,109.7505]
[1673650241142,20.0,18.06,18.021,24.44362921]
[1673650241345,39.67530155,18.048,18.021,79.32335736]
[1673650241565,20.0,18.047,18.022,77.91306148]
[1673650241992,20.0,18.047,18.022,20.0]
[1673650241993,39.67530155,18.046,18.022,20.0]
[1673650242309,20.0,18.045,18.02,109.7505]
[1673650242731,39.67530155,18.044,18.02,109.7505]
[1673650242918,20.0,18.043,18.02,109.7505]
[1673650243471,30.0,18.037,18.02,109.7505]
[1673650243652,20.0,18.036,18.01,109.7505]
[1673650243863,104.04266043,18.036,18.01,109.7505]
[1673650244073,61.06751461,18.035,18.01,109.7505]
[1673650244302,20.0,18.034,18.01,109.7505]
[1673650244489,20.0,18.033,18.01,109.7505]
[1673650244704,20.0,18.032,18.01,109.7505]
[1673650245021,59.67530155,18.032,18.003,118.3159]
[1673650245231,39.67530155,18.031,18.003,118.3159]
[1673650245435,20.0,18.029,18.003,118.3159]
[1673650245653,20.0,18.028,18.003,118.3159]
[1673650245866,252.15032647,18.028,17.985,39.88383389]
[1673650246075,23.85588733,18.003,17.985,39.88383389]
[1673650246278,161.8,18.026,17.985,39.88383389]
[1673650246279,26.40189,18.002,17.985,39.88383389]
[1673650246511,67.80967288,18.002,17.985,39.88383389]
[1673650246715,16.64870773,18.001,17.985,39.88383389]
[1673650246920,68.0738469,18.001,17.985,39.88383389]
[1673650247242,20.0,18.002,17.985,39.88383389]
[1673650247456,20.0,18.023,17.986,20.0]
[1673650247761,43.40189,18.022,17.985,39.88383389]
[1673650247983,6.40189,18.021,17.985,39.88383389]
[1673650248168,37.0,18.02,17.985,39.88383389]
[1673650248378,20.0,18.018,17.985,39.88383389]
[1673650248590,161.8,18.016,17.985,39.88383389]
[1673650248810,20.0,18.014,17.985,2.03642899]
[1673650249028,37.8474049,17.984,17.982,13.8861661]
[1673650249242,181.8,18.012,17.982,13.8861661]
[1673650249453,20.0,18.01,17.982,13.8861661]
[1673650249761,38.65178288,17.987,17.982,13.8861661]
[1673650249956,38.65178288,17.987,17.965,133.1943]
[1673650250170,64.56356524,17.986,17.966,20.0]
[1673650250375,63.36009751,17.986,17.966,20.0]
[1673650250596,63.36009751,17.986,17.965,113.1943]
[1673650250814,12.53317178,17.973,17.958,39.8898567]
[1673650251131,20.0,17.984,17.955,13.8861661]
[1673650251132,64.26709069,17.967,17.955,13.8861661]
[1673650251321,64.26709069,17.967,17.901,27.11349243]
[1673650251322,75.3627898,17.966,17.942,38.9673387]
[1673650251529,75.3627898,17.966,17.93,39.8898567]
[1673650251530,6.28304659,17.94,17.931,93.69049301]
[1673650251741,20.0,17.939,17.93,39.8898567]
[1673650251963,20.0,17.939,17.93,133.09816029]
[1673650252176,39.78128019,17.938,17.931,20.0]
[1673650252370,48.9608998,17.966,17.931,44.44362921]
[1673650252578,48.9608998,17.966,17.932,6.43456]
[1673650252801,48.9608998,17.966,17.932,30.87818921]
[1673650253003,48.9608998,17.966,17.933,24.44362921]
[1673650253212,48.9608998,17.966,17.934,6.43384]
[1673650253434,48.9608998,17.966,17.935,20.0]
[1673650253632,48.9608998,17.966,17.935,44.44362921]
[1673650254050,48.9608998,17.966,17.936,24.44362921]
[1673650254265,48.9608998,17.966,17.938,20.0]
[1673650254601,48.9608998,17.966,17.939,6.43205]
[1673650254816,48.9608998,17.966,17.94,20.0]
[1673650255009,48.9608998,17.966,17.941,6.43133]
[1673650255214,32.15482897,17.965,17.942,20.0]
[1673650255420,32.15482897,17.965,17.938,20.0]
[1673650255740,20.0,17.964,17.938,20.0]
[1673650255938,46.2375571,17.965,17.938,20.0]
[1673650256156,34.61722451,17.963,17.938,20.0]
[1673650256368,20.0,17.962,17.938,20.0]
[1673650256592,46.2375571,17.965,17.929,20.0]
[1673650256807,20.0,17.965,17.932,6.43456]
[1673650257120,34.61722451,17.961,17.929,20.0]
[1673650257309,20.0,17.959,17.931,1.43492]
[1673650257518,20.0,17.959,17.923,20.0]
[1673650257519,6.40189,17.958,17.923,20.0]
[1673650257751,20.0,17.957,17.911,108.9281]
[1673650257940,6.40189,17.956,17.911,108.9281]
[1673650258171,20.0,17.955,17.911,108.9281]
[1673650258374,26.40189,17.954,17.922,20.0]
[1673650258590,26.40189,17.953,17.911,108.9281]
[1673650258906,6.40189,17.952,17.911,108.9281]
[1673650259119,20.0,17.951,17.911,108.9281]
[1673650259331,43.40189,17.95,17.93,0.0098567]
[1673650259533,32.89577419,17.93,17.911,108.9281]
[1673650259748,6.40189,17.929,17.905,8.5427485]
[1673650259957,50.86419911,17.929,17.905,8.5427485]
[1673650260165,20.0,17.927,17.905,8.3884321]
[1673650260375,20.0,17.928,17.905,8.3884321]
[1673650260376,97.40652671,17.928,17.905,8.3884321]
[1673650260588,46.69107505,17.926,17.905,8.3884321]
[1673650260908,31.5402,17.921,17.905,8.3884321]
[1673650261117,20.0,17.92,17.905,8.3884321]
[1673650261442,20.0,17.918,17.905,8.3884321]
[1673650261654,30.49642596,17.91,17.905,8.3884321]
[1673650261871,2.22876594,17.906,17.905,8.3884321]
[1673650262065,30.26148104,17.916,17.905,8.3884321]
[1673650262276,46.10897577,17.906,17.905,8.3884321]
[1673650262908,46.10897577,17.906,17.9,45.2332743]
[1673650263124,8.3884321,17.904,17.9,45.2332743]
[1673650263450,69.42224244,17.903,17.9,45.2332743]
[1673650264056,47.62092102,17.902,17.9,45.2332743]
[1673650264267,20.0,17.901,17.9,45.2332743]
[1673650264600,20.0,17.946,17.9,45.2332743]
[1673650265010,68.35691214,17.945,17.9,45.2332743]
[1673650265212,20.0,17.944,17.901,20.0]
[1673650265428,68.35691214,17.945,17.901,139.6506]
[1673650265657,43.31477175,17.945,17.902,134.6496]
[1673650265844,20.0,17.946,17.902,134.6496]
[1673650266048,20.0,17.946,17.903,6.44498]
[1673650266287,64.64754707,17.952,17.905,20.0]
[1673650266485,41.58718768,17.952,17.906,20.0]
[1673650266698,48.9608998,17.966,17.906,44.44362921]
[1673650267014,48.9608998,17.966,17.907,30.88716921]
[1673650267236,20.0,17.965,17.909,20.0]
[1673650267539,20.0,17.965,17.91,6.44246]
[1673650267750,20.0,17.963,17.912,20.0]
[1673650267956,20.0,17.963,17.913,6.44138]
[1673650268168,20.0,17.961,17.913,6.44138]
[1673650268492,33.01835939,17.96,17.913,6.44138]
[1673650268689,20.0,17.959,17.913,6.44138]
[1673650268904,58.99707635,17.959,17.91,119.6506]
[1673650269104,20.0,17.958,17.911,20.0]
[1673650269315,70.71229408,17.958,17.911,20.0]
[1673650269745,31.71521773,17.958,17.911,20.0]
[1673650269946,35.90873188,17.957,17.911,20.0]
[1673650270170,35.90873188,17.957,17.913,20.0]
[1673650270381,78.38260068,17.956,17.913,26.44138]
[1673650270590,78.38260068,17.956,17.914,30.88465921]
[1673650270785,55.06782893,17.955,17.915,6.44067]
[1673650270998,61.30538603,17.955,17.924,17.56818789]
[1673650271207,35.06782893,17.955,17.925,6.43707]
[1673650271424,35.06782893,17.954,17.924,17.56818789]
[1673650271957,99.9107939,17.967,17.924,17.56818789]
[1673650272157,7.67106854,17.959,17.924,17.56818789]
[1673650272692,54.72116226,17.958,17.924,17.56818789]
[1673650272905,20.0,17.958,17.924,17.56818789]
[1673650273211,32.46782893,17.957,17.925,20.0]
[1673650273950,48.9608998,17.966,17.925,20.0]
[1673650274165,35.64370321,17.959,17.925,20.0]
[1673650274354,34.33982893,17.958,17.926,37.0]
[1673650274567,41.53703655,17.965,17.926,198.8]
[1673650274775,34.33982893,17.958,17.926,198.8]
[1673650274993,1.7777352,17.965,17.926,198.8]
[1673650275213,39.75930135,17.96,17.927,20.0]
[1673650275629,39.92313695,17.959,17.925,6.43707]
[1673650275950,39.92313695,17.959,17.924,17.56818789]
[1673650276141,39.92313695,17.959,17.925,40.0]
[1673650276347,88.72020115,17.966,17.925,208.23707]
[1673650276557,3.5554704,17.958,17.925,232.68069921]
[1673650276784,65.99685845,17.965,17.928,20.0]
[1673650276999,48.9608998,17.966,17.93,20.0]
[1673650277194,48.9608998,17.966,17.931,20.0]
[1673650277406,48.9608998,17.966,17.932,165.3554704]
[1673650277615,48.9608998,17.966,17.933,20.0]
[1673650277927,83.0011726,18.013,17.934,203.72312895]
[1673650278151,20.0,18.012,17.936,161.8]
[1673650278358,20.0,18.012,17.937,24.5991267]
[1673650278555,0.0008998,17.979,17.938,161.8]
[1673650278768,0.0002728,17.986,17.94,20.0]
[1673650278981,414.12094986,18.039,17.942,20.0]
[1673650278982,20.0,18.006,17.942,20.0]
[1673650279193,20.0,18.006,17.943,25.82342184]
[1673650279398,51.4608998,18.007,17.943,125.28285421]
[1673650279620,51.4608998,18.007,17.944,196.97481128]
[1673650279836,51.4608998,18.007,17.945,25.82342184]
[1673650280055,20.0,18.006,17.947,20.0]
[1673650280244,51.4608998,18.007,17.948,25.82342184]
[1673650280453,51.4608998,18.007,17.949,161.8]
[1673650280689,51.4608998,18.007,17.95,20.0]
[1673650280901,51.4608998,18.007,17.951,178.8]
[1673650281230,51.4608998,18.007,17.953,161.8]
[1673650281537,51.4608998,18.007,17.956,5.82342184]
[1673650281746,51.4608998,18.007,17.958,5.82342184]
[1673650281944,51.4608998,18.007,17.96,5.82342184]
[1673650282156,51.4608998,18.007,17.962,167.62342184]
[1673650282371,51.4608998,18.007,17.964,5.82342184]
[1673650282594,51.4608998,18.007,17.966,161.8]
[1673650282800,0.0008998,18.007,17.968,161.8]
[1673650283013,0.0002728,18.013,17.97,20.0]
[1673650283224,0.0002728,18.013,17.971,25.82342184]
[1673650283423,45.23682141,18.022,18.017,0.0597272]
[1673650288033,20.0,18.021,18.017,0.0597272]
[1673650288254,55.34124483,18.021,18.017,0.0597272]
[1673650288666,20.0,18.021,18.017,0.0597272]
[1673650289499,45.23682141,18.022,18.017,0.0597272]
[1673650289931,35.34124483,18.02,18.017,0.0597272]
[1673650290149,45.23682141,18.022,18.017,0.0597272]
[1673650290576,35.34124483,18.021,18.017,0.0597272]
[1673650291209,45.23682141,18.022,18.017,0.0597272]
[1673650291411,0.01525351,18.025,18.017,0.0597272]
[1673650291622,54.25,18.033,18.018,20.0]
[1673650291623,0.00329882,18.033,18.018,20.0]
[1673650291840,54.25,18.033,18.019,5.82342184]